[Event "EYCC Girls U16 2021"]
[Site "Tornelo"]
[Date "2021.10.15"]
[Round "4.10"]
[White "Naymanova, Patricie"]
[Black "Zabrzanska, Weronika"]
[Result "1-0"]
[ECO "E05"]
[WhiteElo "1894"]
[BlackElo "1892"]
[Annotator "NA"]
[PlyCount "53"]
[EventDate "2021.10.15"]
[EventType "swiss"]
[EventCountry "NET"]
[SourceTitle "playchess.com"]
[Source "ChessBase"]
[SourceQuality "1"]
[TimeControl "5400+30"]

1. d4 {[%emt 0:00:30]} Nf6 {[%emt 0:00:43]} 2. c4 {[%emt 0:00:05]} e6 {[%emt 0:00:07]} 3. Nf3 {[%emt 0:00:03]} d5 {[%emt 0:00:07]} 4. g3 {[%emt 0:00:04]} Be7 {[%emt 0:00:07]} 5. Bg2 {[%emt 0:00:02]} O-O {[%emt 0:00:09]} 6. O-O {[%emt 0:00:02]} dxc4 {[%emt 0:01:41]} 7. Qc2 {[%emt 0:00:07]} a6 {[%emt 0:00:05]} 8. a4 {[%emt 0:00:03]} Nbd7 {[%emt 0:03:24]} 9. Nbd2 {[%emt 0:00:07]} c5 {[%emt 0:05:21]} 10. Nxc4 {[%emt 0:00:22]} cxd4 {[%emt 0:00:50]} 11. Rd1 {[%emt 0:01:00]} Bc5 {[%emt 0:01:22]} 12. Nxd4 {[%emt 0:02:21]} Qe7 {[%emt 0:00:39]} 13. b3 {[%emt 0:24:14]} Rd8 {[%emt 0:07:53]} 14. Bb2 {[%emt 0:03:03]} Rb8 {[%emt 0:03:54]} 15. Na5 {[%emt 0:06:42]} Bxd4 {[%emt 0:03:42]} 16. Rxd4 {[%emt 0:00:12]} e5 {[%emt 0:02:35]} 17. Ba3 {[%emt 0:00:45]} Qe8 {[%emt 0:01:46]} 18. Rd6 {[%emt 0:01:26]} Nf8 {[%emt 0:01:34]} 19. Rad1 {[%emt 0:02:08]} Rxd6 {[%emt 0:01:33]} 20. Bxd6 {[%emt 0:00:10]} Ra8 {[%emt 0:00:30]} 21. Nxb7 {[%emt 0:02:16]} Ra7 {[%emt 0:01:42]} 22. Bxf8 {[%emt 0:13:46]} Bxb7 {[%emt 0:08:59]} 23. Qc7 {[%emt 0:03:25]} Qxf8 {[%emt 0:05:45]} 24. Rd8 {[%emt 0:01:14]} Ne8 {[%emt 0:01:14]} 25. Qd7 {[%emt 0:00:55]} Bc6 {[%emt 0:01:28]} 26. Qxa7 {[%emt 0:00:23]} Bxg2 {[%emt 0:00:43]} 27. Kxg2 {[%emt 0:00:05]} 1-0

[Event "EYCC Girls U16 2021"]
[Site "Tornelo"]
[Date "2021.10.15"]
[Round "4.11"]
[White "Lomaia, Diana"]
[Black "Russeva, Viktoria"]
[Result "1/2-1/2"]
[ECO "D36"]
[WhiteElo "2111"]
[BlackElo "1713"]
[Annotator "NA"]
[PlyCount "91"]
[EventDate "2021.10.15"]
[EventType "swiss"]
[EventCountry "NET"]
[SourceTitle "playchess.com"]
[Source "ChessBase"]
[SourceQuality "1"]
[TimeControl "5400+30"]

1. d4 {[%emt 0:00:30]} d5 {[%emt 0:00:35]} 2. c4 {[%emt 0:00:08]} e6 {[%emt 0:00:05]} 3. Nc3 {[%emt 0:00:08]} Nf6 {[%emt 0:00:06]} 4. cxd5 {[%emt 0:00:08]} exd5 {[%emt 0:00:06]} 5. Bg5 {[%emt 0:00:05]} Be7 {[%emt 0:00:08]} 6. e3 {[%emt 0:00:04]} c6 {[%emt 0:00:39]} 7. Bd3 {[%emt 0:00:06]} O-O {[%emt 0:00:27]} 8. Nge2 {[%emt 0:00:10]} Nbd7 {[%emt 0:00:51]} 9. Qc2 {[%emt 0:01:12]} Re8 {[%emt 0:01:39]} 10. O-O {[%emt 0:00:38]} Ne4 {[%emt 0:03:29]} 11. Bxe7 {[%emt 0:03:12]} Qxe7 {[%emt 0:00:46]} 12. Bxe4 {[%emt 0:00:18]} dxe4 {[%emt 0:00:08]} 13. Rab1 $11 {[%emt 0:04:55]} Nb6 {[%emt 0:05:38]} 14. Nf4 {[%emt 0:07:17]} Bf5 {[%emt 0:07:46]} 15. a4 {[%emt 0:06:03]} Rac8 {[%emt 0:07:10]} 16. b4 {[%emt 0:06:11]} Nd5 {[%emt 0:08:39]} 17. Ncxd5 {[%emt 0:09:12]} cxd5 {[%emt 0:00:25]} 18. Qb3 {[%emt 0:00:03]} Be6 {[%emt 0:00:42]} 19. Rbc1 {[%emt 0:00:49]} Qd7 {[%emt 0:07:30]} 20. b5 {[%emt 0:10:38]} b6 {[%emt 0:05:10]} 21. Qb2 {[%emt 0:10:37]} h6 {[%emt 0:24:36]} 22. h3 {[%emt 0:01:59]} Qd6 {[%emt 0:04:10]} 23. Rfd1 {[%emt 0:04:10]} Kh7 {[%emt 0:04:30]} 24. Kh1 {[%emt 0:12:20]} Red8 {[%emt 0:02:21]} 25. Ne2 {[%emt 0:11:10]} Re8 {[%emt 0:04:17]} 26. Nf4 {[%emt 0:03:25]} Red8 {[%emt 0:00:35]} 27. Nxe6 {[%emt 0:05:09]} fxe6 {[%emt 0:02:45]} 28. Qe2 {[%emt 0:00:02]} Rc7 {[%emt 0:01:32]} 29. Rxc7 {[%emt 0:00:51]} Qxc7 {[%emt 0:00:05]} 30. Qg4 {[%emt 0:00:11]} Qf7 {[%emt 0:05:16]} 31. f3 {[%emt 0:01:17]} exf3 {[%emt 0:00:19]} 32. gxf3 {[%emt 0:00:43]} Rc8 {[%emt 0:00:19]} 33. e4 {[%emt 0:02:21]} Rc3 {[%emt 0:01:42]} 34. Rf1 {[%emt 0:00:26]} dxe4 {[%emt 0:01:23]} 35. Qxe4+ {[%emt 0:00:02]} Qg6 {[%emt 0:00:08]} 36. Qe5 {[%emt 0:00:53]} Qd3 {[%emt 0:01:46]} 37. Rf2 {[%emt 0:00:02]} Rc1+ {[%emt 0:00:30]} 38. Kh2 {[%emt 0:00:02]} Qg6 {[%emt 0:00:45]} 39. Rg2 {[%emt 0:00:18]} Rc2 {[%emt 0:00:05]} 40. Rxc2 {[%emt 0:00:09]} Qxc2+ {[%emt 0:00:04]} 41. Kg3 {[%emt 0:00:02]} Qxa4 {[%emt 0:00:39]} 42. Qe4+ {[%emt 0:00:03]} Kh8 {[%emt 0:00:06]} 43. Qa8+ {[%emt 0:00:03]} Kh7 {[%emt 0:00:04]} 44. Qe4+ {[%emt 0:00:03]} Kh8 {[%emt 0:00:04]} 45. Qa8+ {[%emt 0:00:06]} Kh7 {[%emt 0:00:03]} 46. Qe4+ {[%emt 0:00:08]} 1/2-1/2

[Event "EYCC Girls U16 2021"]
[Site "Tornelo"]
[Date "2021.10.15"]
[Round "4.12"]
[White "Striskova, Lucia"]
[Black "Hakobyan, Astghik"]
[Result "1/2-1/2"]
[ECO "B15"]
[WhiteElo "1923"]
[BlackElo "2017"]
[Annotator "ChessBase"]
[PlyCount "112"]
[EventDate "2021.10.15"]
[EventType "swiss"]
[EventCountry "NET"]
[SourceTitle "playchess.com"]
[Source "ChessBase"]
[SourceQuality "1"]
[TimeControl "5400+30"]

1. e4 {[%emt 0:00:30]} c6 {[%emt 0:00:38]} 2. d4 {[%emt 0:00:12]} d5 {[%emt 0:00:04]} 3. Nc3 {[%emt 0:00:08]} dxe4 {[%emt 0:00:06]} 4. Nxe4 {[%emt 0:00:06]} Nf6 {[%emt 0:00:04]} 5. Nxf6+ {[%emt 0:00:30]} exf6 {[%emt 0:00:04]} 6. c3 {[%emt 0:00:33]} Bd6 {[%emt 0:00:05]} 7. Bd3 {[%emt 0:00:13]} O-O {[%emt 0:00:08]} 8. Qc2 {[%emt 0:00:57]} Re8+ {[%emt 0:00:04]} 9. Ne2 {[%emt 0:00:06]} h5 {[%emt 0:00:05]} 10. Be3 {[%emt 0:04:19]} Nd7 {[%emt 0:00:11]} 11. O-O-O {[%emt 0:00:15]} Nf8 {[%emt 0:00:07]} 12. h3 {[%emt 0:12:34]} Be6 {[%emt 0:01:32]} 13. Kb1 {[%emt 0:02:30]} b5 {[%emt 0:05:00]} 14. g4 {[%emt 0:04:04]} h4 {[%emt 0:00:24]} 15. Rhg1 {[%emt 0:01:23]} Qd7 {[%emt 0:06:41]} 16. Bc1 {[%emt 0:04:07]} Bc4 {[%emt 0:11:42]} 17. Bxc4 {[%emt 0:06:39]} bxc4 {[%emt 0:00:37]} 18. Nf4 {[%emt 0:00:11]} Bxf4 {[%emt 0:05:42]} 19. Bxf4 {[%emt 0:00:09]} Ng6 {[%emt 0:03:52]} 20. Bc1 {[%emt 0:00:15]} Qd5 {[%emt 0:01:26]} 21. f4 {[%emt 0:04:51]} Re4 {[%emt 0:12:12]} 22. f5 {[%emt 0:02:40]} Nf8 {[%emt 0:02:51]} 23. Qf2 {[%emt 0:03:06]} Rae8 {[%emt 0:01:00]} 24. Qxh4 {[%emt 0:06:11]} Qxf5 {[%emt 0:03:03]} 25. gxf5 {[%emt 0:04:21]} Rxh4 {[%emt 0:01:28]} 26. Rde1 {[%emt 0:03:12]} Rxe1 {[%emt 0:04:29]} 27. Rxe1 {[%emt 0:00:19]} Rxh3 {[%emt 0:01:44]} 28. Re8 {[%emt 0:00:07]} g5 {[%emt 0:06:03]} 29. fxg6 {[%emt 0:00:48]} fxg6 {[%emt 0:00:06]} 30. Rc8 {[%emt 0:00:14]} g5 {[%emt 0:04:16]} 31. Rxc6 {[%emt 0:00:45]} Kf7 {[%emt 0:03:30]} 32. Rxc4 {[%emt 0:04:16]} Ke6 {[%emt 0:01:51]} 33. Kc2 {[%emt 0:07:16]} Nd7 {[%emt 0:05:04]} 34. Ra4 {[%emt 0:06:20]} g4 {[%emt 0:02:26]} 35. d5+ {[%emt 0:01:39]} Kxd5 {[%emt 0:00:12]} 36. Rxg4 {[%emt 0:00:28]} Ne5 {[%emt 0:01:43]} 37. Rd4+ {[%emt 0:00:34]} Ke6 {[%emt 0:00:33]} 38. b4 {[%emt 0:02:26]} f5 {[%emt 0:01:05]} 39. a4 {[%emt 0:00:42]} Rh2+ {[%emt 0:01:45]} 40. Rd2 {[%emt 0:03:31]} Rh4 {[%emt 0:03:23]} 41. Re2 {[%emt 0:01:18]} f4 {[%emt 0:00:34]} 42. Rf2 {[%emt 0:00:47]} f3 {[%emt 0:00:33]} 43. Be3 {[%emt 0:01:11]} Rh7 {[%emt 0:01:24]} 44. Bd4 {[%emt 0:00:33]} Rf7 {[%emt 0:00:05]} 45. Rf1 {[%emt 0:02:02]} Nc4 {[%emt 0:05:02]} 46. Bxa7 {[%emt 0:02:22]} Rxa7 {[%emt 0:03:31]} 47. Rxf3 {[%emt 0:00:09]} Rxa4 {[%emt 0:00:59]} 48. Kb3 {[%emt 0:01:48]} Nd2+ {[%emt 0:00:05]} 49. Kxa4 {[%emt 0:00:06]} Nxf3 {[%emt 0:00:03]} 50. Kb5 {[%emt 0:00:39]} Ne5 {[%emt 0:01:00]} 51. Ka6 {[%emt 0:01:19]} Kd6 {[%emt 0:00:45]} 52. b5 {[%emt 0:00:21]} Nd7 {[%emt 0:00:42]} 53. Kb7 {[%emt 0:02:43]} Kc5 {[%emt 0:00:10]} 54. c4 {[%emt 0:00:26]} Nb6 {[%emt 0:00:11]} 55. Ka6 {[%emt 0:00:09]} Nxc4 {[%emt 0:00:03]} 56. b6 {[%emt 0:00:02]} Nxb6 {[%emt 0:00:04]} 1/2-1/2

[Event "EYCC Girls U16 2021"]
[Site "Tornelo"]
[Date "2021.10.15"]
[Round "5.5"]
[White "Kara, Gulce Nehir"]
[Black "Sulyok, Eszter"]
[Result "1-0"]
[ECO "B40"]
[WhiteElo "1766"]
[BlackElo "1913"]
[Annotator "RC"]
[PlyCount "75"]
[EventDate "2021.10.15"]
[EventType "swiss"]
[EventCountry "NET"]
[SourceTitle "playchess.com"]
[Source "ChessBase"]
[SourceQuality "1"]
[TimeControl "5400+30"]

1. e4 {[%emt 0:00:30]} c5 {[%emt 0:00:35]} 2. Nf3 {[%emt 0:00:05]} e6 {[%emt 0:00:03]} 3. c3 {[%emt 0:00:04]} d5 {[%emt 0:00:09]} 4. exd5 {[%emt 0:00:06]} exd5 {[%emt 0:03:00]} 5. Bb5+ {[%emt 0:00:28]} Bd7 {[%emt 0:00:53]} 6. Bxd7+ {[%emt 0:00:05]} Qxd7 {[%emt 0:00:21]} 7. Ne5 {[%emt 0:08:14]} Qe6 {[%emt 0:01:36]} 8. O-O {[%emt 0:03:53]} Bd6 {[%emt 0:07:59]} 9. Qa4+ {[%emt 0:06:41]} Nd7 {[%emt 0:01:28]} 10. Nf3 {[%emt 0:05:32]} Ne7 {[%emt 0:05:14]} 11. Re1 {[%emt 0:00:42]} Qf5 {[%emt 0:01:19]} 12. Na3 {[%emt 0:05:11]} Kd8 {[%emt 0:22:13]} 13. d4 {[%emt 0:08:01]} Nc6 {[%emt 0:06:15]} 14. Nb5 {[%emt 0:05:00]} Bb8 {[%emt 0:00:39]} 15. dxc5 {[%emt 0:15:05]} Nxc5 {[%emt 0:01:32]} 16. Qh4+ {[%emt 0:00:28]} f6 {[%emt 0:01:12]} 17. Be3 {[%emt 0:01:35]} Ne4 {[%emt 0:01:18]} 18. Red1 {[%emt 0:02:21]} Ke7 {[%emt 0:03:33]} 19. Nfd4 {[%emt 0:05:55]} Qd7 {[%emt 0:05:00]} 20. f3 {[%emt 0:03:59]} Nd6 {[%emt 0:00:54]} 21. Nxd6 {[%emt 0:02:17]} Bxd6 {[%emt 0:00:10]} 22. Nb5 {[%emt 0:00:41]} Rad8 {[%emt 0:02:54]} 23. Kh1 {[%emt 0:02:09]} a6 {[%emt 0:02:04]} 24. Nxd6 {[%emt 0:01:42]} Qxd6 {[%emt 0:00:23]} 25. Bf4 {[%emt 0:01:09]} Qc5 {[%emt 0:00:36]} 26. Re1+ {[%emt 0:03:07]} Kf7 {[%emt 0:00:24]} 27. Qg4 {[%emt 0:00:10]} g5 {[%emt 0:06:30]} 28. Bc7 {[%emt 0:01:19]} Rc8 {[%emt 0:02:05]} 29. Qd7+ {[%emt 0:02:55]} Kg6 {[%emt 0:00:13]} 30. f4 {[%emt 0:00:50]} d4 {[%emt 0:05:47]} 31. fxg5 {[%emt 0:01:36]} Qxg5 {[%emt 0:00:33]} 32. cxd4 {[%emt 0:04:00]} Nxd4 {[%emt 0:01:15]} 33. Re4 {[%emt 0:01:43]} Nf5 {[%emt 0:01:13]} 34. Rf1 {[%emt 0:01:11]} Nh6 {[%emt 0:03:18]} 35. h4 {[%emt 0:02:20]} Qb5 {[%emt 0:00:30]} 36. Rxf6+ {[%emt 0:02:50]} Kxf6 {[%emt 0:01:08]} 37. Qe7+ {[%emt 0:00:33]} Kf5 {[%emt 0:02:58]} 38. Qe6# {[%emt 0:00:18]} 1-0

[Event "EYCC Girls U16 2021"]
[Site "Tornelo"]
[Date "2021.10.15"]
[Round "5.9"]
[White "Shpakivskaya, Alina"]
[Black "Jovanovic, Anja"]
[Result "1-0"]
[ECO "C45"]
[WhiteElo "1875"]
[BlackElo "1781"]
[Annotator "NA RC"]
[PlyCount "135"]
[EventDate "2021.10.15"]
[EventType "swiss"]
[EventCountry "NET"]
[SourceTitle "playchess.com"]
[Source "ChessBase"]
[SourceQuality "1"]
[TimeControl "5400+30"]

1. e4 {[%emt 0:00:30]} e5 {[%emt 0:00:43]} 2. Nf3 {[%emt 0:00:07]} Nc6 {[%emt 0:00:08]} 3. d4 {[%emt 0:00:05]} exd4 {[%emt 0:00:48]} 4. Nxd4 {[%emt 0:00:06]} Bc5 {[%emt 0:01:12]} 5. Nb3 {[%emt 0:00:24]} Bb6 {[%emt 0:02:32]} 6. Qe2 {[%emt 0:02:13]} d6 {[%emt 0:07:33]} 7. Be3 {[%emt 0:02:07]} Nf6 {[%emt 0:02:48]} 8. Nc3 {[%emt 0:01:14]} Be6 {[%emt 0:05:51]} 9. O-O-O {[%emt 0:04:33]} Qe7 {[%emt 0:04:54]} 10. f3 {[%emt 0:05:06]} Ne5 {[%emt 0:11:07]} 11. Nd4 {[%emt 0:10:33]} O-O {[%emt 0:17:02]} 12. Kb1 {[%emt 0:11:37]} Ba5 {[%emt 0:05:39]} 13. Qe1 {[%emt 0:09:27]} c6 {[%emt 0:08:49]} 14. Bg5 {[%emt 0:05:34]} Bxc3 {[%emt 0:03:14]} 15. Qxc3 $16 {[%emt 0:01:48]} Rfe8 {[%emt 0:05:43]} 16. h4 {[%emt 0:09:26]} h6 {[%emt 0:01:15]} 17. Bf4 {[%emt 0:02:11]} Ng6 {[%emt 0:04:05]} 18. Nxe6 {[%emt 0:08:01]} fxe6 {[%emt 0:06:45]} 19. Bxd6 {[%emt 0:03:04]} Qd7 {[%emt 0:02:16]} 20. Bc4 {[%emt 0:06:03]} Rad8 {[%emt 0:01:46]} 21. a3 {[%emt 0:01:02]} Nd5 {[%emt 0:01:43]} 22. Bxd5 {[%emt 0:03:22]} Qxd6 {[%emt 0:00:19]} 23. Bc4 {[%emt 0:01:52]} Qxd1+ {[%emt 0:00:10]} 24. Rxd1 {[%emt 0:00:05]} Rxd1+ {[%emt 0:00:02]} 25. Ka2 {[%emt 0:00:04]} Nxh4 {[%emt 0:00:54]} 26. Qb3 {[%emt 0:00:46]} b6 {[%emt 0:01:49]} 27. Bxe6+ {[%emt 0:00:11]} Kh8 {[%emt 0:00:26]} 28. g3 {[%emt 0:00:48]} Ng2 {[%emt 0:00:38]} 29. Bf5 {[%emt 0:03:18]} Re7 {[%emt 0:00:56]} 30. f4 {[%emt 0:01:00]} Ne1 {[%emt 0:00:53]} 31. Qc3 {[%emt 0:00:58]} c5 {[%emt 0:01:07]} 32. Bg4 {[%emt 0:00:28]} Rd4 {[%emt 0:00:42]} 33. Qxe1 {[%emt 0:00:51]} Rdxe4 {[%emt 0:00:07]} 34. Qc3 {[%emt 0:00:31]} Re3 {[%emt 0:00:24]} 35. Qd2 {[%emt 0:00:14]} Kh7 {[%emt 0:00:58]} 36. Qd6 {[%emt 0:00:54]} g6 {[%emt 0:01:57]} 37. f5 {[%emt 0:00:25]} gxf5 {[%emt 0:00:51]} 38. Bxf5+ {[%emt 0:00:06]} Kg8 {[%emt 0:00:16]} 39. Qg6+ {[%emt 0:00:31]} Rg7 {[%emt 0:00:07]} 40. Be6+ {[%emt 0:00:22]} Rxe6 {[%emt 0:00:47]} 41. Qxe6+ {[%emt 0:00:04]} Kh7 {[%emt 0:00:03]} 42. Qf5+ {[%emt 0:00:19]} Kg8 {[%emt 0:00:21]} 43. g4 {[%emt 0:00:03]} Kh8 {[%emt 0:00:31]} 44. a4 {[%emt 0:00:03]} Rg5 {[%emt 0:01:11]} 45. Qf8+ {[%emt 0:00:16]} Kh7 {[%emt 0:00:05]} 46. Qf7+ {[%emt 0:00:06]} Rg7 {[%emt 0:00:03]} 47. Qf5+ {[%emt 0:00:03]} Kh8 {[%emt 0:01:08]} 48. Kb3 {[%emt 0:00:13]} Rg5 {[%emt 0:00:37]} 49. Qf8+ {[%emt 0:00:05]} Kh7 {[%emt 0:00:04]} 50. Qf7+ {[%emt 0:00:03]} Rg7 {[%emt 0:00:03]} 51. Qf5+ {[%emt 0:00:02]} Kh8 {[%emt 0:00:05]} 52. a5 {[%emt 0:01:08]} Rg5 {[%emt 0:01:11]} 53. Qf8+ {[%emt 0:00:03]} Kh7 {[%emt 0:00:03]} 54. Qe7+ {[%emt 0:00:17]} Rg7 {[%emt 0:00:04]} 55. Qe4+ {[%emt 0:00:03]} Kh8 {[%emt 0:00:29]} 56. Ka4 {[%emt 0:00:13]} bxa5 {[%emt 0:00:55]} 57. Kxa5 {[%emt 0:00:16]} Rg5 {[%emt 0:01:15]} 58. Ka6 {[%emt 0:00:54]} Rg7 {[%emt 0:00:13]} 59. Qe5 {[%emt 0:01:42]} Kh7 {[%emt 0:00:11]} 60. Qf5+ {[%emt 0:00:27]} Kh8 {[%emt 0:00:09]} 61. Qxc5 {[%emt 0:00:09]} Rxg4 {[%emt 0:00:07]} 62. Qf8+ {[%emt 0:00:08]} Kh7 {[%emt 0:00:11]} 63. Qf5+ {[%emt 0:00:10]} Rg6+ {[%emt 0:00:03]} 64. Kxa7 {[%emt 0:00:03]} Kg7 {[%emt 0:00:05]} 65. b4 {[%emt 0:00:19]} Rg5 {[%emt 0:00:03]} 66. Qd7+ {[%emt 0:00:14]} Kf6 {[%emt 0:00:13]} 67. Qc6+ {[%emt 0:00:08]} Kg7 {[%emt 0:00:05]} 68. b5 {[%emt 0:00:05]} 1-0

[Event "EYCC Girls U16 2021"]
[Site "Tornelo"]
[Date "2021.10.15"]
[Round "6.3"]
[White "Tsotsonava, Elene"]
[Black "Mihelic, Vesna"]
[Result "1/2-1/2"]
[ECO "C30"]
[WhiteElo "1887"]
[BlackElo "1882"]
[Annotator "NA RC"]
[PlyCount "128"]
[EventDate "2021.10.15"]
[EventType "swiss"]
[EventCountry "NET"]
[SourceTitle "playchess.com"]
[Source "ChessBase"]
[SourceQuality "1"]
[TimeControl "5400+30"]

1. e4 {[%emt 0:00:30]} e5 {[%emt 0:00:37]} 2. Nc3 {[%emt 0:00:10]} Nf6 {[%emt 0:00:11]} 3. Bc4 {[%emt 0:00:07]} Nc6 {[%emt 0:00:30]} 4. d3 {[%emt 0:00:08]} Bc5 {[%emt 0:00:12]} 5. f4 {[%emt 0:00:19]} d6 {[%emt 0:00:10]} 6. Nf3 {[%emt 0:00:40]} a6 {[%emt 0:02:12]} 7. a3 {[%emt 0:03:51]} h6 {[%emt 0:05:24]} 8. f5 {[%emt 0:03:58]} Nd4 {[%emt 0:01:25]} 9. Nxd4 {[%emt 0:02:57]} exd4 {[%emt 0:07:02]} 10. Ne2 {[%emt 0:01:49]} d5 {[%emt 0:00:41]} 11. exd5 {[%emt 0:16:10]} Bxf5 {[%emt 0:02:27]} 12. O-O {[%emt 0:00:18]} Bg4 {[%emt 0:01:38]} 13. Qe1 {[%emt 0:01:44]} O-O {[%emt 0:04:26]} 14. Nf4 {[%emt 0:00:23]} Bd6 {[%emt 0:13:18]} 15. h3 {[%emt 0:03:02]} Bh5 {[%emt 0:01:51]} 16. Qf2 {[%emt 0:05:47]} b6 {[%emt 0:09:21]} 17. Bd2 {[%emt 0:03:32]} Bg6 {[%emt 0:02:52]} 18. Ne2 {[%emt 0:08:38]} Be5 {[%emt 0:04:18]} 19. Nxd4 {[%emt 0:02:01]} Bxd4 {[%emt 0:02:48]} 20. Qxd4 {[%emt 0:00:14]} c5 $1 {[%emt 0:00:30]} 21. Qf4 {[%emt 0:05:24]} Qd7 {[%emt 0:13:39]} 22. Qf3 {[%emt 0:08:26]} Kh7 {[%emt 0:07:41]} 23. Rae1 $16 {[%emt 0:06:06]} (23. Ba2 $18) 23... Rad8 {[%emt 0:02:15]} 24. Bxa6 {[%emt 0:01:17]} Qa4 {[%emt 0:00:48]} 25. Bc4 {[%emt 0:04:34]} Nxd5 {[%emt 0:03:35]} 26. Bb3 {[%emt 0:05:08]} Qd4+ {[%emt 0:01:08]} 27. Kh1 {[%emt 0:00:30]} b5 {[%emt 0:01:19]} 28. Qf2 {[%emt 0:04:58]} Qxf2 {[%emt 0:01:43]} 29. Rxf2 {[%emt 0:00:06]} f6 {[%emt 0:03:59]} 30. Re6 {[%emt 0:02:27]} Bf7 {[%emt 0:00:44]} 31. Rc6 {[%emt 0:00:49]} Rc8 {[%emt 0:00:20]} 32. Bxd5 {[%emt 0:02:39]} Bxd5 {[%emt 0:00:11]} 33. Rb6 {[%emt 0:00:26]} Rb8 {[%emt 0:00:23]} 34. Rxb8 {[%emt 0:01:03]} Rxb8 {[%emt 0:00:06]} 35. Rf5 {[%emt 0:00:07]} Rd8 {[%emt 0:00:19]} 36. Ba5 {[%emt 0:00:21]} Rd7 {[%emt 0:01:43]} 37. c4 {[%emt 0:00:18]} bxc4 {[%emt 0:01:33]} 38. dxc4 {[%emt 0:00:05]} Bxc4 {[%emt 0:00:29]} 39. Rxc5 {[%emt 0:00:05]} Rd1+ {[%emt 0:00:21]} 40. Kh2 {[%emt 0:00:07]} Bf1 {[%emt 0:00:12]} 41. Rc2 {[%emt 0:01:52]} Kg6 {[%emt 0:02:08]} 42. Bc7 {[%emt 0:00:49]} Bd3 {[%emt 0:00:36]} 43. Rf2 {[%emt 0:00:23]} Rc1 {[%emt 0:00:44]} 44. Bf4 {[%emt 0:00:22]} Rc2 {[%emt 0:00:12]} 45. Kg3 {[%emt 0:02:45]} Kf5 {[%emt 0:00:56]} 46. Bd2+ {[%emt 0:01:02]} Ke6 {[%emt 0:00:10]} 47. Bc3 {[%emt 0:00:20]} Rxf2 {[%emt 0:01:23]} 48. Kxf2 {[%emt 0:00:03]} g5 {[%emt 0:00:38]} 49. Ke3 {[%emt 0:00:26]} Bf1 {[%emt 0:00:07]} 50. Kf2 {[%emt 0:00:06]} Bc4 {[%emt 0:00:47]} 51. g3 {[%emt 0:00:24]} f5 {[%emt 0:00:17]} 52. g4 {[%emt 0:02:38]} fxg4 {[%emt 0:01:55]} 53. hxg4 {[%emt 0:00:03]} Kf7 {[%emt 0:00:10]} 54. Ke3 {[%emt 0:00:35]} Be6 {[%emt 0:00:13]} 55. Kf3 {[%emt 0:00:10]} Bd5+ {[%emt 0:00:10]} 56. Kg3 {[%emt 0:00:15]} Bb3 {[%emt 0:00:15]} 57. Bd4 {[%emt 0:00:20]} Kg6 {[%emt 0:00:13]} 58. Bc5 {[%emt 0:00:42]} Kf7 {[%emt 0:00:11]} 59. Bd6 {[%emt 0:01:00]} Kg7 {[%emt 0:00:11]} 60. Kf3 {[%emt 0:03:11]} Bd1+ {[%emt 0:00:09]} 61. Kg3 {[%emt 0:00:09]} Bb3 {[%emt 0:00:09]} 62. Bb4 {[%emt 0:00:15]} Kf7 {[%emt 0:00:08]} 63. Bc3 {[%emt 0:00:12]} Kg6 {[%emt 0:00:10]} 64. Be5 {[%emt 0:00:08]} Kf7 {[%emt 0:00:09]} 1/2-1/2

[Event "EYCC Girls U16 2021"]
[Site "Tornelo"]
[Date "2021.10.15"]
[Round "8.1"]
[White "Shpakivskaya, Alina"]
[Black "Kanyamarala, Trisha"]
[Result "1/2-1/2"]
[ECO "D01"]
[WhiteElo "1875"]
[BlackElo "2082"]
[Annotator "ChessBase"]
[PlyCount "88"]
[EventDate "2021.10.15"]
[EventType "swiss"]
[EventCountry "NET"]
[SourceTitle "playchess.com"]
[Source "ChessBase"]
[SourceQuality "1"]
[TimeControl "5400+30"]

1. d4 {[%emt 0:00:30]} Nf6 {[%emt 0:00:52]} 2. Nc3 {[%emt 0:00:11]} d5 {[%emt 0:00:41]} 3. Bg5 {[%emt 0:00:11]} Bf5 {[%emt 0:03:05]} 4. Nf3 {[%emt 0:01:16]} h6 {[%emt 0:01:45]} 5. Bh4 {[%emt 0:01:46]} e6 {[%emt 0:02:38]} 6. e3 {[%emt 0:00:44]} a6 {[%emt 0:03:23]} 7. Bd3 {[%emt 0:00:52]} Bxd3 {[%emt 0:10:04]} 8. cxd3 {[%emt 0:00:50]} Be7 {[%emt 0:09:45]} 9. Qb3 {[%emt 0:03:23]} Ra7 {[%emt 0:05:52]} 10. O-O {[%emt 0:03:45]} Nbd7 {[%emt 0:02:58]} 11. Ne5 {[%emt 0:02:19]} O-O {[%emt 0:06:15]} 12. Rac1 {[%emt 0:04:47]} Nxe5 {[%emt 0:13:31]} 13. dxe5 {[%emt 0:01:00]} Nd7 {[%emt 0:01:25]} 14. Bxe7 {[%emt 0:00:37]} Qxe7 {[%emt 0:00:06]} 15. d4 {[%emt 0:00:42]} c5 {[%emt 0:02:24]} 16. Rfd1 {[%emt 0:05:44]} b5 {[%emt 0:02:29]} 17. a3 {[%emt 0:05:13]} Rb8 {[%emt 0:02:56]} 18. e4 {[%emt 0:09:52]} cxd4 {[%emt 0:02:01]} 19. Rxd4 {[%emt 0:03:29]} dxe4 {[%emt 0:04:08]} 20. Nxe4 {[%emt 0:09:19]} Nxe5 {[%emt 0:04:34]} 21. Qg3 {[%emt 0:01:49]} f6 {[%emt 0:01:03]} 22. Rc5 {[%emt 0:06:56]} Kh8 {[%emt 0:03:26]} 23. f4 {[%emt 0:05:02]} Nf7 {[%emt 0:02:22]} 24. b4 {[%emt 0:04:43]} f5 {[%emt 0:05:01]} 25. Nc3 {[%emt 0:04:25]} Rd8 {[%emt 0:01:07]} 26. Rxd8+ {[%emt 0:01:05]} Qxd8 {[%emt 0:00:42]} 27. Qe3 {[%emt 0:01:26]} Re7 {[%emt 0:01:33]} 28. Rc6 {[%emt 0:02:05]} e5 {[%emt 0:01:22]} 29. Qc5 {[%emt 0:03:28]} Qd2 {[%emt 0:02:04]} 30. h3 {[%emt 0:01:32]} Qc1+ {[%emt 0:01:06]} 31. Kh2 {[%emt 0:00:31]} Qxf4+ {[%emt 0:00:07]} 32. Kh1 {[%emt 0:00:15]} Rd7 {[%emt 0:02:39]} 33. Nd5 {[%emt 0:05:11]} Qe4 {[%emt 0:01:00]} 34. Rxh6+ {[%emt 0:02:52]} Nxh6 {[%emt 0:02:06]} 35. Qc8+ {[%emt 0:00:09]} Kh7 {[%emt 0:00:35]} 36. Qxd7 {[%emt 0:00:15]} Qe1+ {[%emt 0:00:17]} 37. Kh2 {[%emt 0:00:02]} Qh4 {[%emt 0:00:29]} 38. Kh1 {[%emt 0:02:12]} e4 {[%emt 0:00:38]} 39. Qe6 {[%emt 0:00:49]} Qg5 {[%emt 0:00:34]} 40. Kh2 {[%emt 0:00:45]} Qh4 {[%emt 0:00:48]} 41. Kg1 {[%emt 0:00:57]} Qe1+ {[%emt 0:00:18]} 42. Kh2 {[%emt 0:00:04]} Qh4 {[%emt 0:00:17]} 43. Kg1 {[%emt 0:00:03]} Qe1+ {[%emt 0:00:32]} 44. Kh2 {[%emt 0:00:05]} Qh4 {[%emt 0:00:19]} 1/2-1/2